bitfinex/quotes_SOLUSD_20250520
["timestamp","ask_amount","ask_price","bid_price","bid_amount"]
[1747747924400,27.94467594,165.96,165.9,26.0]
[1747747924617,27.94467594,165.94,165.9,26.0]
[1747747924788,0.14216157,165.98,165.9,26.0]
[1747747924989,27.94467594,165.95,165.9,26.0]
[1747747925205,27.94467594,165.94,165.89,19.96]
[1747747925409,0.14216157,165.98,165.86,8.51679309]
[1747747925410,27.94467594,165.9,165.86,8.51679309]
[1747747925588,27.94467594,165.89,165.86,8.51679309]
[1747747926191,6.0284543,165.88,165.84,26.0]
[1747747926396,21.09959006,165.88,165.83,19.96]
[1747747926733,21.09959006,165.88,165.84,26.0]
[1747747927391,27.94467594,165.87,165.78,1.666]
[1747747927617,21.09959006,165.88,165.79,18.64964886]
[1747747927618,27.94467594,165.85,165.79,18.64964886]
[1747747927793,27.94467594,165.85,165.78,1.666]
[1747747927794,27.94467594,165.86,165.78,1.666]
[1747747928110,6.02772754,165.9,165.83,18.64964886]
[1747747928614,21.0970464,165.9,165.83,18.64964886]
[1747747929113,49.04172234,165.9,165.83,18.64964886]
[1747747929894,49.04172234,165.9,165.83,26.0]
[1747747930205,21.0970464,165.9,165.83,26.0]
[1747747930405,27.94467594,165.89,165.83,26.0]
[1747747931231,21.0970464,165.9,165.83,26.0]
[1747747931536,27.94467594,165.89,165.83,26.0]
[1747747932223,6.0284543,165.88,165.83,26.0]
[1747747932591,6.0284543,165.88,165.78,1.666]
[1747747932592,27.94467594,165.86,165.79,18.64964886]
[1747747932829,26.14216157,165.87,165.72,1.607]
[1747747933132,27.94467594,165.79,165.72,19.687]
[1747747933297,27.94467594,165.79,165.75,26.0]
[1747747933497,27.94467594,165.78,165.72,19.687]
[1747747933793,27.94467594,165.78,165.75,26.0]
[1747747934420,27.94467594,165.78,165.73,26.0]
[1747747934421,6.0324546,165.77,165.73,26.0]
[1747747934602,6.0324546,165.77,165.71,18.64964886]
[1747747934801,33.97713054,165.77,165.71,18.64964886]
[1747747935003,6.0324546,165.77,165.72,26.0]
[1747747935505,27.94467594,165.76,165.7,20.48]
[1747747935705,27.94467594,165.75,165.71,26.0]
[1747747936004,27.94467594,165.75,165.7,26.0]
[1747747936216,49.05826705,165.77,165.7,26.0]
[1747747936703,49.05826705,165.77,165.67,36.72964886]
[1747747937024,21.11359111,165.77,165.7,26.0]
[1747747937197,6.0324546,165.77,165.7,26.0]
[1747747937399,21.11359111,165.77,165.7,26.0]
[1747747937615,49.05826705,165.77,165.7,26.0]
[1747747937816,21.11359111,165.77,165.7,26.0]
[1747747938100,49.05826705,165.77,165.7,26.0]
[1747747939013,49.05826705,165.77,165.72,26.0]
[1747747939014,6.0324546,165.77,165.72,26.0]
[1747747939213,6.0324546,165.77,165.73,18.64964886]
[1747747939521,6.03172688,165.79,165.73,18.64964886]
[1747747941121,6.03099933,165.81,165.73,18.64964886]
[1747747941798,6.03099933,165.81,165.76,26.0]
[1747747942001,6.03099933,165.81,165.77,18.64964886]
[1747747942216,6.03099933,165.81,165.76,26.0]
[1747747942418,6.03099933,165.81,165.75,18.64964886]
[1747747942622,33.97567527,165.81,165.75,26.0]
[1747747943019,21.10849767,165.81,165.75,26.0]
[1747747943200,6.03099933,165.81,165.76,18.64964886]
[1747747943733,6.03099933,165.81,165.75,26.0]
[1747747943918,21.10849767,165.81,165.75,26.0]
[1747747944437,6.03099933,165.81,165.76,18.64964886]
[1747747944808,8.61951016,166.01,165.95,26.0]
[1747747945009,14.36585026,166.1,166.06,26.0]
[1747747945209,14.36585026,166.1,166.06,44.64964886]
[1747747945727,14.36585026,166.1,166.08,26.0]
[1747747945918,9.42771953,166.12,166.1,26.0]
[1747747947108,6.0175713,166.18,166.1,26.0]
[1747747947707,48.18601505,166.18,166.1,26.0]
[1747747947918,42.16844375,166.17,166.1,26.0]
[1747747948229,21.06149957,166.18,166.1,26.0]
[1747747948407,42.16844375,166.13,166.07,26.0]
[1747747948609,42.31060532,166.14,166.07,26.0]
[1747747949538,6.01938241,166.13,166.07,26.0]
[1747747951344,42.16844375,166.11,166.05,26.0]
[1747747951637,42.16844375,166.11,165.99,13.697195]
[1747747951638,6.02046959,166.1,166.02,18.06]
[1747747951810,6.02046959,166.1,166.03,26.0]
[1747747953208,6.01938241,166.13,166.04,18.64964886]
[1747747953415,6.01938241,166.13,166.05,26.0]
[1747747954921,6.01938241,166.13,166.07,26.0]
[1747747955640,57.21135684,166.2,166.1,18.64964886]
[1747747955817,15.04291309,166.2,166.11,18.06]
[1747747956017,6.01612321,166.22,166.12,44.64964886]
[1747747956018,48.18456696,166.22,166.12,44.64964886]
[1747747956408,63.22487498,166.22,166.12,44.64964886]
[1747747956637,42.16844375,166.2,166.13,18.06]
[1747747956939,42.31060532,166.21,166.13,18.06]
[1747747957313,42.31060532,166.21,166.12,18.06]
[1747747957640,6.01539942,166.24,166.16,26.0]
[1747747958152,21.05389797,166.24,166.16,26.0]
[1747747958519,21.05389797,166.24,166.16,18.64964886]
[1747747958940,6.01539942,166.24,166.16,18.64964886]
[1747747959844,15.0360915,166.27,166.21,26.0]
[1747747960137,6.01359071,166.29,166.21,26.0]
[1747747960526,21.04756749,166.29,166.21,26.0]
[1747747960737,21.04756749,166.29,166.22,18.64964886]
[1747747961611,15.03129078,166.32,166.25,26.0]
[1747747961811,15.03129078,166.32,166.26,18.64964886]
[1747747962045,15.03129078,166.32,166.27,18.06]
[1747747963126,15.03129078,166.32,166.21,18.64964886]
[1747747963127,42.16844375,166.28,166.21,18.64964886]
[1747747963328,42.16844375,166.27,166.21,18.04]
[1747747963641,57.20603773,166.25,166.21,18.04]
[1747747964348,57.20603773,166.25,166.18,18.04]
[1747747964349,15.03759398,166.25,166.18,18.04]
[1747747964521,42.16844375,166.23,166.14,18.64964886]
[1747747964719,42.31060532,166.24,166.15,18.04]
[1747747964933,0.14216157,166.24,166.15,44.04]
[1747747965120,0.14216157,166.24,166.15,18.04]
[1747747965320,42.31060532,166.24,166.15,44.04]
[1747747965721,21.05516452,166.23,166.15,44.04]
[1747747966036,0.14216157,166.22,166.15,44.04]
[1747747967230,42.31060532,166.22,166.15,26.0]
[1747747967424,42.16844375,166.2,166.11,18.64964886]
[1747747967626,42.16844375,166.2,166.11,36.68964886]
[1747747967830,21.06023225,166.19,166.11,36.68964886]
[1747747968033,21.06023225,166.19,166.14,26.0]
[1747747968222,6.01720921,166.19,166.15,18.64964886]
[1747747970046,15.04085546,166.22,166.15,18.64964886]
[1747747970943,6.01539942,166.24,166.18,26.0]
[1747747971245,21.05389797,166.24,166.19,44.04]
[1747747971949,15.03849855,166.24,166.19,44.04]
[1747747972336,15.03849855,166.24,166.14,5.41702791]
[1747747972337,42.16844375,166.23,166.1,26.0]
[1747747972643,42.16844375,166.18,166.08,18.64964886]
[1747747972947,26.0,166.21,166.1,26.0]
[1747747973250,42.16844375,166.18,166.1,26.0]
[1747747973547,42.16844375,166.18,166.1,18.64964886]
[1747747973850,21.06276704,166.17,166.1,44.64964886]
[1747747974345,63.23121079,166.17,166.07,246.66]
[1747747974544,42.16844375,166.12,166.05,18.04]
[1747747974849,42.16844375,166.12,166.04,44.04]
[1747747975445,42.31060532,166.13,166.04,44.04]
[1747747975943,21.06910666,166.12,166.04,44.04]
[1747747978718,21.06910666,166.12,166.05,18.04]
[1747747980452,42.31060532,166.11,166.02,26.0]
[1747747980957,0.14216157,166.09,166.02,26.0]
[1747747981168,0.14216157,166.07,166.0,18.04]
[1747747981450,42.16844375,166.05,165.93,83.1413]
[1747747981664,42.16844375,166.04,165.96,18.04]
[1747747981825,93.35784452,166.05,165.97,18.64964886]
[1747747982033,51.18940077,166.05,165.97,18.64964886]
[1747747982336,21.07798855,166.05,165.98,26.0]
[1747747983554,21.07798855,166.05,165.99,18.64964886]
[1747747983858,21.07798855,166.05,166.0,26.0]
[1747747984062,6.02228244,166.05,166.01,18.64964886]
[1747747984227,6.02228244,166.05,166.02,18.04]
[1747747985353,15.05361286,166.08,166.02,18.04]
[1747747985528,15.05361286,166.08,165.97,26.0]
[1747747985735,0.14216157,166.07,166.01,26.0]
[1747747986229,15.05361286,166.08,166.01,26.0]
[1747747986930,15.05361286,166.08,166.02,18.64964886]
[1747747987935,15.05361286,166.08,166.03,3.38182845]
[1747747988258,15.05361286,166.08,166.03,29.38182845]
[1747747988853,15.05361286,166.08,166.03,3.38182845]
[1747747989263,15.05361286,166.08,166.01,26.0]
[1747747989555,15.05361286,166.08,166.01,18.06]
[1747747990356,21.07480746,166.08,166.01,18.06]
[1747747990932,27.82189374,166.06,165.98,62.70964886]
[1747747991154,27.96405531,166.07,166.02,3.39960029]
[1747747991548,51.18078048,166.08,166.02,3.39960029]
[1747747992262,51.18078048,166.08,166.03,3.39960029]
[1747747993039,186.08078048,166.08,166.03,3.39960029]
[1747747993744,27.96405531,166.07,165.98,44.06]
[1747747994146,0.14216157,166.07,165.98,44.06]
[1747747994762,186.08078048,166.08,166.01,26.0]
[1747747995549,186.08078048,166.08,166.02,3.39615475]
[1747747996161,213.90267422,166.08,166.02,3.39615475]
[1747747996363,162.86405531,166.07,166.02,3.39615475]
[1747747996570,162.86405531,166.07,165.99,26.0]
[1747747996959,6.02191978,166.06,165.99,26.0]
[1747747997156,21.07671925,166.06,165.99,26.0]
[1747747997558,51.18631819,166.06,165.99,26.0]
[1747747998367,21.07671925,166.06,165.99,26.0]
[1747747998542,21.07671925,166.06,166.0,18.64964886]
[1747747999063,51.31923422,166.09,166.0,18.64964886]
[1747748000351,21.07291226,166.09,166.03,26.0]
[1747748000554,21.07291226,166.09,166.04,18.06]
[1747748000744,6.02083207,166.09,166.07,26.0]
[1747748001155,48.88719616,166.15,166.07,26.0]
[1747748001369,162.72189374,166.14,166.07,26.0]
[1747748001547,162.72189374,166.14,166.04,18.06]
[1747748001548,27.82189374,166.11,166.04,18.06]
[1747748002355,0.14216157,166.11,166.04,18.06]
[1747748003848,21.07164358,166.1,166.04,18.06]
[1747748004374,26.0,166.16,166.08,18.64964886]
[1747748004375,15.04646687,166.16,166.08,18.64964886]
[1747748004555,42.86836061,166.16,166.08,18.64964886]
[1747748004759,0.14216157,166.14,166.07,26.0]
[1747748004949,27.96405531,166.14,166.07,26.0]
[1747748005155,15.04646687,166.16,166.07,26.0]
[1747748005671,15.04646687,166.16,166.08,18.64964886]
[1747748005875,15.04646687,166.16,166.11,26.0]
[1747748006248,6.01793344,166.17,166.13,26.0]
[1747748007370,15.04374954,166.19,166.13,26.0]
[1747748007880,6.01648516,166.21,166.14,18.64964886]
[1747748008080,21.05769808,166.21,166.14,18.64964886]
[1747748008457,6.01648516,166.21,166.17,26.0]
[1747748008653,15.03912376,166.24,166.13,31.4174081]
[1747748008654,6.01576129,166.23,166.21,26.0]
[1747748009375,21.05009922,166.27,166.21,26.0]
[1747748011468,42.8576789,166.27,166.21,26.0]
[1747748011786,15.03578516,166.27,166.21,26.0]
[1747748012965,27.96405531,166.26,166.18,26.0]
[1747748013164,0.14216157,166.26,166.18,26.0]
[1747748013680,21.05263157,166.25,166.18,26.0]
[1747748013878,21.05263157,166.25,166.2,26.0]
[1747748014593,6.01503759,166.25,166.21,18.64964886]
[1747748014765,6.01431406,166.27,166.24,26.0]
[1747748015166,6.01431406,166.27,166.26,26.0]
[1747748015865,15.03280892,166.31,166.26,26.0]
[1747748017581,6.01250601,166.32,166.26,26.0]
[1747748017767,21.04178169,166.34,166.26,26.0]
[1747748019500,51.10069716,166.34,166.26,26.0]
[1747748020471,0.14216157,166.33,166.26,26.0]
[1747748021867,21.05136532,166.26,166.11,235.19939309]
[1747748022075,27.82189374,166.22,166.12,18.04]
[1747748022383,27.82189374,166.22,166.13,18.64964886]
[1747748022570,0.14216157,166.24,166.12,18.04]
[1747748022571,27.82189374,166.21,166.15,26.0]
[1747748022970,0.14216157,166.22,166.15,26.0]
[1747748023168,27.96405531,166.22,166.15,26.0]
[1747748023867,21.05769808,166.21,166.15,26.0]
[1747748025584,51.14012392,166.21,166.15,26.0]
[1747748025987,15.04121292,166.21,166.15,26.0]
[1747748027976,21.05769808,166.21,166.15,26.0]
[1747748028664,51.14012392,166.21,166.15,26.0]
[1747748029601,21.05769808,166.21,166.15,26.0]
[1747748029970,15.04121292,166.21,166.15,26.0]
[1747748031782,15.04121292,166.21,166.16,18.64964886]
[1747748032188,21.05389797,166.24,166.16,18.64964886]
[1747748032498,21.05389797,166.24,166.17,26.0]
[1747748032889,78.95278882,166.24,166.17,26.0]
[1747748033087,51.13089508,166.24,166.17,26.0]
[1747748033294,21.05389797,166.24,166.17,26.0]
[1747748034101,72.9373894,166.24,166.17,26.0]
[1747748034772,45.11549566,166.24,166.17,26.0]
[1747748035903,72.9373894,166.24,166.17,26.0]
[1747748036083,51.13089508,166.24,166.17,26.0]
[1747748036804,21.05389797,166.24,166.17,26.0]
[1747748038106,30.07337904,166.26,166.18,18.64964886]
[1747748039603,18.79181043,166.25,166.11,1.5226]
[1747748039815,26.0,166.1,165.97,9.31530419]
[1747748040028,27.82189374,165.99,165.97,9.31530419]
[1747748040180,18.79181043,166.1,165.99,1.646]
[1747748040379,21.07037504,166.11,166.03,26.0]
[1747748040602,6.02010715,166.11,166.05,26.0]
[1747748040799,6.02010715,166.11,166.1,44.64964886]
[1747748040978,6.02010715,166.11,166.04,18.04]
[1747748041179,6.02010715,166.11,166.07,26.0]
[1747748041384,0.14216157,166.16,166.06,18.04]
[1747748041689,6.01865783,166.15,166.06,18.04]
[1747748042222,6.01938241,166.13,166.06,18.04]
[1747748042402,0.14216157,166.12,166.06,18.04]
[1747748042712,27.96405531,166.12,166.03,39.64]
[1747748043210,0.14216157,166.12,166.03,39.64]
[1747748044215,6.02010715,166.11,166.03,39.64]
[1747748044708,6.01865783,166.15,166.07,26.0]
[1747748044920,21.06530242,166.15,166.07,26.0]
[1747748045898,6.01865783,166.15,166.08,18.64964886]
[1747748046286,27.82189374,166.2,166.08,24.06859474]
[1747748046489,27.82189374,166.19,166.08,24.06859474]
[1747748046716,27.82189374,166.19,166.08,24.06868981]
[1747748046916,21.05769808,166.21,166.12,18.64964886]
[1747748048216,15.04121292,166.21,166.12,18.64964886]
[1747748048520,15.04121292,166.21,166.12,24.06733798]
[1747748049114,42.86310666,166.21,166.11,27.5241]
[1747748049322,0.14216157,166.19,166.12,18.04]
[1747748050116,27.96405531,166.19,166.12,18.04]
[1747748050319,21.06149957,166.18,166.12,18.04]
[1747748050522,27.82189374,166.16,166.11,27.5241]
[1747748050817,0.14216157,166.17,166.08,18.04]
[1747748051019,27.82189374,166.15,166.08,18.04]
[1747748051315,27.82189374,166.15,166.08,44.04]
[1747748051522,27.82189374,166.15,166.08,18.04]
[1747748051725,51.14935611,166.18,166.09,18.64964886]
[1747748052022,21.06149957,166.18,166.09,18.64964886]
[1747748052314,48.88339331,166.18,166.09,18.64964886]
[1747748052529,21.06149957,166.18,166.11,26.0]
[1747748053623,21.06149957,166.18,166.12,26.0]
[1747748054537,15.04392827,166.18,166.12,26.0]
[1747748054735,42.86582201,166.18,166.12,26.0]
[1747748055236,15.04392827,166.18,166.12,26.0]
[1747748056124,6.01720921,166.19,166.13,18.64964886]
[1747748056826,15.04162893,166.21,166.13,18.64964886]
[1747748058338,27.82189374,166.2,166.12,47.62]
[1747748058540,0.14216157,166.2,166.12,47.62]
[1747748058719,27.96405531,166.2,166.12,47.62]
[1747748059041,21.06023225,166.19,166.12,47.62]
[1747748059414,21.06023225,166.19,166.12,65.66]
[1747748061137,162.86405531,166.18,166.08,26.0]
[1747748061438,162.72189374,166.17,166.09,21.44865445]
[1747748062237,134.9,166.17,166.09,21.44865445]
[1747748062614,134.9,166.17,166.12,26.0]
[1747748062820,21.06023225,166.19,166.12,26.0]
[1747748063021,15.04302304,166.19,166.13,18.64964886]
[1747748064237,15.04302304,166.19,166.14,26.0]
[1747748064416,15.04302304,166.19,166.14,44.04]
[1747748067650,42.86491678,166.19,166.14,18.04]
[1747748067833,27.82189374,166.16,166.1,18.04]
[1747748068023,27.82189374,166.15,166.1,26.0]
[1747748068740,0.14216157,166.16,166.1,26.0]
[1747748068941,21.06530242,166.15,166.1,26.0]
[1747748069836,21.06530242,166.15,166.11,3.42055512]
[1747748070641,48.88719616,166.15,166.11,3.42055512]
[1747748071425,21.06530242,166.15,166.09,26.0]
[1747748072824,15.04664459,166.15,166.09,26.0]
[1747748073026,6.01793344,166.17,166.1,18.64964886]
[1747748073929,6.01793344,166.17,166.13,26.0]
[1747748074232,6.01793344,166.17,166.14,18.04]
[1747748075048,21.05769808,166.21,166.14,18.04]
[1747748075553,21.05769808,166.21,166.15,1.5824]
[1747748075753,21.05769808,166.21,166.17,26.0]
[1747748076233,134.9,166.27,166.18,26.0]
[1747748076234,6.01576129,166.23,166.18,26.0]
[1747748076425,6.01576129,166.23,166.19,18.04]
[1747748077064,21.05079504,166.27,166.19,18.04]
[1747748077229,21.05079504,166.27,166.22,26.0]
[1747748077230,6.01431406,166.27,166.22,26.0]
[1747748078442,6.01431406,166.27,166.16,26.0]
[1747748078647,6.01431406,166.27,166.2,26.0]
[1747748079155,21.05009922,166.27,166.2,26.0]
[1747748084152,21.05009922,166.27,166.21,44.04]
[1747748085871,48.87199296,166.27,166.21,44.04]
[1747748086076,27.82189374,166.26,166.21,44.04]
[1747748086479,21.05009922,166.27,166.15,1.5824]
[1747748086480,162.86405531,166.25,166.19,18.04]
[1747748087279,21.05516452,166.23,166.19,18.04]
[1747748088362,21.05516452,166.23,166.19,44.04]
[1747748089760,21.05516452,166.23,166.15,19.6224]
[1747748090069,27.82189374,166.2,166.15,19.6224]
[1747748090662,27.82189374,166.19,166.15,18.04]
[1747748090868,27.82189374,166.16,166.11,21.26]
[1747748091068,27.82189374,166.13,166.06,18.04]
[1747748091256,27.82189374,166.12,166.06,18.04]
[1747748091470,21.07037504,166.11,166.07,3.41583015]
[1747748091668,21.07037504,166.11,166.06,18.04]
[1747748092185,6.02010715,166.11,166.07,3.41465748]
[1747748092557,6.02010715,166.11,166.06,18.04]
[1747748093064,6.02010715,166.11,166.07,3.41442539]
[1747748093368,6.02010715,166.11,166.06,18.04]
[1747748093571,15.04974524,166.12,166.06,18.04]
[1747748093980,42.87163898,166.12,166.06,18.04]
[1747748094375,27.82189374,166.1,166.03,18.04]
[1747748094580,27.82189374,166.1,166.03,44.04]
[1747748095497,21.07291226,166.09,166.03,44.04]
[1747748097486,48.894806,166.09,166.03,44.04]
[1747748098265,48.894806,166.09,166.03,26.0]
[1747748098681,0.14216157,166.08,166.02,18.04]
[1747748099267,21.0754501,166.07,166.02,18.04]
[1747748100884,21.0754501,166.07,166.01,27.6651]
[1747748101087,27.82189374,166.05,165.96,1.6069]
[1747748101298,27.82189374,166.02,165.93,8.52474041]
[1747748101498,47.08052761,166.03,165.97,3.40891637]
[1747748101499,27.82189374,166.01,165.97,3.40891637]
[1747748101663,27.82189374,165.99,165.97,3.40891637]
[1747748102064,27.82189374,165.98,165.97,3.40891637]
[1747748102280,53.82189374,165.98,165.97,3.40891637]
[1747748102487,53.82189374,165.98,165.93,8.52474041]
[1747748102691,27.82189374,165.94,165.86,9.31174112]
[1747748102861,27.82189374,165.89,165.86,9.31174112]
[1747748103394,6.02881774,165.87,165.86,9.31174112]
[1747748104182,0.14216157,165.97,165.89,26.0]
[1747748104373,27.82189374,165.96,165.89,26.0]
[1747748104686,21.08687792,165.98,165.89,26.0]
[1747748104687,27.82189374,165.95,165.9,18.64964886]
[1747748104874,27.82189374,165.93,165.89,26.0]
[1747748105074,0.14216157,165.97,165.87,36.70964886]
[1747748105075,27.82189374,165.92,165.87,44.06]
[1747748105477,21.09577481,165.91,165.87,44.06]
[1747748105671,48.91766855,165.91,165.87,44.06]
[1747748105870,48.91766855,165.91,165.87,18.06]
[1747748106077,27.82189374,165.9,165.87,18.06]
[1747748106486,27.82189374,165.9,165.85,26.0]
[1747748106689,79.05448971,165.91,165.85,26.0]
[1747748106892,51.23259597,165.91,165.85,26.0]
[1747748107065,27.82189374,165.89,165.85,26.0]
[1747748107266,27.82189374,165.87,165.83,1.6457]
[1747748107468,27.82189374,165.85,165.82,18.06]
[1747748107793,27.82189374,165.83,165.78,1.6025]
[1747748108090,51.2480405,165.86,165.73,16.66084041]
[1747748108091,27.82189374,165.79,165.73,16.66084041]
[1747748108294,27.82189374,165.76,165.69,6.2353]
[1747748108491,26.0,165.77,165.64,17.83648153]
[1747748108799,93.66189374,165.76,165.64,17.83648153]
[1747748108970,103.66189374,165.76,165.64,17.83648153]
[1747748109300,26.0,165.7,165.64,17.83648153]
[1747748109470,53.82189374,165.65,165.64,17.83648153]
[1747748109667,68.44783346,165.65,165.64,17.83648153]
[1747748109863,26.0,165.66,165.64,17.83648153]
[1747748110154,68.44783346,165.65,165.64,17.83648153]
[1747748110397,26.0,165.65,165.64,17.83648153]
[1747748110573,68.44783346,165.65,165.64,17.83648153]
[1747748110770,26.0,165.65,165.64,17.83648153]
[1747748110993,0.14216157,165.67,165.64,17.83648153]
[1747748111294,42.44783346,165.65,165.64,8.52474041]
[1747748111593,48.62681966,165.65,165.64,8.52474041]
[1747748111768,0.14216157,165.64,165.57,26.0]
[1747748111971,21.1288862,165.65,165.58,18.64964886]
[1747748112386,21.1288862,165.65,165.55,26.0]
[1747748112387,21.1288862,165.65,165.57,18.64964886]
[1747748112764,21.1288862,165.65,165.53,18.06]
[1747748112765,47.1288862,165.65,165.54,18.64964886]
[1747748113381,47.1288862,165.65,165.47,1.6614]
[1747748113382,42.44783346,165.58,165.47,1.6614]
[1747748113582,21.13143753,165.63,165.48,18.08]
[1747748113912,0.14216157,165.62,165.52,18.64964886]
[1747748114106,42.44783346,165.59,165.52,18.64964886]
[1747748114289,0.14216157,165.62,165.55,26.0]
[1747748114613,42.44783346,165.61,165.55,26.0]
[1747748114801,21.13143753,165.63,165.55,26.0]
[1747748114992,42.44783346,165.6,165.55,26.0]
[1747748115185,42.44783346,165.59,165.47,1.6614]
[1747748115381,21.27870362,165.59,165.47,19.7414]
[1747748115588,42.44783346,165.56,165.47,1.6614]
[1747748115808,21.27870362,165.59,165.48,18.64964886]
[1747748116014,42.44783346,165.57,165.48,18.64964886]
[1747748116188,21.13654205,165.59,165.48,18.64964886]
[1747748116393,21.13654205,165.59,165.53,26.0]
[1747748116588,6.03791812,165.62,165.53,44.08]
[1747748116783,42.58999503,165.61,165.53,44.08]
[1747748116983,0.14216157,165.61,165.53,44.08]
[1747748117396,6.03864734,165.6,165.53,44.08]
[1747748117807,21.13526569,165.6,165.51,44.64964886]
[1747748118108,63.58309915,165.6,165.51,44.64964886]
[1747748118322,0.14216157,165.59,165.48,44.64964886]
[1747748118490,0.14216157,165.59,165.48,62.74964886]
[1747748118685,0.14216157,165.56,165.48,36.74964886]
[1747748118885,21.13526569,165.6,165.52,18.64964886]
[1747748119086,6.03864734,165.6,165.52,18.64964886]
[1747748119506,42.58999503,165.6,165.52,18.64964886]
[1747748119684,0.14216157,165.59,165.49,18.64964886]
[1747748119883,42.44783346,165.58,165.49,18.64964886]
[1747748120099,0.14216157,165.59,165.49,18.64964886]
[1747748120100,42.58999503,165.59,165.49,18.64964886]
[1747748120310,42.44783346,165.58,165.49,18.64964886]
[1747748120505,42.58999503,165.59,165.49,18.64964886]
[1747748120709,42.44783346,165.6,165.49,18.64964886]
[1747748120897,42.58999503,165.59,165.49,18.64964886]
[1747748121091,42.44783346,165.57,165.49,18.64964886]
[1747748121300,42.58999503,165.56,165.49,18.64964886]
[1747748121617,42.44783346,165.6,165.47,1.6614]
[1747748121618,42.58999503,165.54,165.47,1.6614]
[1747748121786,6.04047115,165.55,165.5,18.64964886]
[1747748121987,6.03718908,165.64,165.54,18.64964886]
[1747748122517,21.13016179,165.64,165.54,18.14964886]
[1747748122892,21.13016179,165.64,165.57,26.0]
[1747748122893,6.03718908,165.64,165.57,26.0]
[1747748123413,21.12670548,165.67,165.58,26.0]
[1747748123996,6.03609585,165.67,165.58,44.1]
[1747748124194,6.03609585,165.67,165.59,1.6125]
[1747748124517,6.03609585,165.67,165.62,18.64964886]
[1747748125312,21.12633548,165.67,165.6,18.64964886]
[1747748126111,6.03609585,165.67,165.6,50.6881642]
[1747748127027,6.03609585,165.67,165.6,44.64964886]
[1747748127487,15.09023963,165.67,165.6,44.64964886]
[1747748128186,57.53807309,165.67,165.6,26.0]
[1747748128389,15.09023963,165.67,165.6,26.0]
[1747748128595,15.09023963,165.67,165.61,18.64964886]
[1747748128913,6.03573153,165.68,165.61,18.64964886]
[1747748129415,21.12506035,165.68,165.67,42.40707906]
[1747748129605,15.08932882,165.68,165.65,42.40707906]
[1747748129806,15.08932882,165.68,165.65,27.96321947]
[1747748130326,15.08932882,165.68,165.66,27.96321947]
[1747748131001,15.08932882,165.68,165.61,18.64964886]
[1747748131319,15.08932882,165.68,165.64,27.96321947]
[1747748131525,43.05254829,165.68,165.63,27.96321947]
[1747748131693,0.14216157,165.67,165.62,27.96321947]
[1747748132026,51.303718,165.68,165.64,27.96321947]
[1747748132204,51.303718,165.68,165.65,27.96321947]
[1747748132700,51.303718,165.68,165.64,27.96321947]
[1747748132898,28.10538104,165.67,165.62,27.96321947]
[1747748133109,0.14216157,165.67,165.63,27.96321947]
[1747748133328,0.14216157,165.67,165.65,27.96321947]
[1747748133497,0.14216157,165.67,165.59,1.6125]
[1747748133836,0.14216157,165.65,165.59,1.6125]
[1747748133993,0.14216157,165.65,165.61,27.96321947]
[1747748134192,28.10538104,165.65,165.6,27.96321947]
[1747748134394,28.10538104,165.65,165.53,1.5168]
[1747748134613,0.14216157,165.63,165.58,27.96321947]
[1747748134818,0.14216157,165.65,165.61,27.96321947]
[1747748135018,0.14216157,165.65,165.62,27.96321947]
[1747748135228,0.14216157,165.65,165.6,27.96321947]
[1747748135422,0.14216157,165.62,165.58,27.96321947]
[1747748135806,0.14216157,165.6,165.58,27.96321947]
[1747748136014,6.03828271,165.61,165.54,36.74964886]
[1747748136205,21.13398949,165.61,165.59,27.96321947]
[1747748136917,21.13398949,165.61,165.6,27.96321947]
[1747748137113,21.13398949,165.61,165.55,18.64964886]
[1747748137312,21.13398949,165.61,165.6,27.96321947]
[1747748137825,6.03755358,165.63,165.6,55.92643894]
[1747748138008,6.03755358,165.63,165.59,26.0]
[1747748138205,6.03755358,165.63,165.62,27.96321947]
[1747748138806,21.2735991,165.63,165.52,34.57741947]
[1747748139007,21.2735991,165.63,165.61,27.96321947]
[1747748139307,21.13143753,165.63,165.62,27.96321947]
[1747748139919,15.09388395,165.63,165.57,26.0]
[1747748140223,15.23604552,165.63,165.61,27.96321947]